bitfinex-derivatives/quotes_ETHF0:USTF0_20250428
["timestamp","ask_amount","ask_price","bid_price","bid_amount"]
[1745865778241,7.54836,1772.8,1772.7,6.04082]
[1745865779044,3.802,1772.8,1772.7,6.04082]
[1745865779241,4.92976,1772.8,1772.7,6.04082]
[1745865780936,6.60546,1772.8,1772.7,6.04082]
[1745865782848,6.60546,1772.8,1772.7,3.2078]
[1745865787444,1.12782,1772.7,1772.6,1.6629]
[1745865787753,1.12789,1772.6,1772.5,4.3357]
[1745865787937,1.12789,1772.6,1772.5,1.1279]
[1745865788138,2.79219,1772.6,1772.5,1.1279]
[1745865788341,1.12795,1772.5,1772.4,3.67176]
[1745865788647,2.79225,1772.5,1772.4,2.79086]
[1745865790546,1.12795,1772.5,1772.4,2.79086]
[1745865791644,1.12793,1772.6,1772.5,1.12789]
[1745865791844,1.12793,1772.6,1772.5,2.75249]
[1745865792153,4.92993,1772.6,1772.5,3.54859]
[1745865796349,4.92993,1772.6,1772.5,6.75639]
[1745865796853,3.802,1772.6,1772.5,6.75639]
[1745865799155,7.1645,1772.7,1772.6,1.12789]
[1745865802156,8.29232,1772.7,1772.6,1.12789]
[1745865803557,1.12798,1772.5,1772.4,1.12795]
[1745865803754,1.12798,1772.5,1772.2,1.6938]
[1745865803954,4.45823,1772.4,1772.3,1.12808]
[1745865805166,8.26023,1772.4,1772.3,1.12808]
[1745865808862,8.26023,1772.4,1772.2,2.87541]
[1745865809459,6.61393,1772.4,1772.2,2.87541]
[1745865809651,6.61393,1772.4,1772.3,1.6065]
[1745865813054,8.25833,1772.4,1772.3,1.6065]
[1745865814054,8.25833,1772.4,1772.1,5.19735]
[1745865814055,1.12814,1772.2,1772.1,5.19735]
[1745865814255,1.12814,1772.2,1772.1,6.92625]
[1745865814963,1.12814,1772.2,1772.1,5.7981]
[1745865815356,1.12814,1772.2,1772.1,1.7289]
[1745865815357,4.33594,1772.2,1772.1,1.7289]
[1745865815556,1.12833,1771.9,1771.8,0.8655]
[1745865815861,1.12833,1771.9,1771.8,2.5944]
[1745865816956,1.12833,1771.9,1771.8,3.7228]
[1745865817965,1.12833,1771.9,1771.8,2.5944]
[1745865819670,1.12833,1771.9,1771.8,3.7228]
[1745865820173,1.12833,1771.9,1771.8,2.5944]
[1745865821675,1.1284,1771.8,1771.7,3.2078]
[1745865821868,2.8233,1771.8,1771.7,3.2078]
[1745865822368,1.12852,1771.6,1771.5,5.7094]
[1745865826569,1.12852,1771.6,1771.5,4.8684]
[1745865827275,1.12865,1771.4,1771.3,3.2078]
[1745865827463,1.12865,1771.4,1771.3,5.6683]
[1745865830473,1.12865,1771.4,1771.3,2.4605]
[1745865832170,2.76175,1771.4,1771.3,2.4605]
[1745865834474,1.6331,1771.4,1771.1,44.0078]
[1745865834774,1.12884,1771.1,1771.0,3.3484]
[1745865834974,1.12884,1771.1,1771.0,4.47731]
[1745865835883,1.12884,1771.1,1771.0,3.3484]
[1745865837083,1.12897,1770.9,1770.8,40.8]
[1745865837288,1.12897,1770.9,1770.8,1.6554]
[1745865837973,1.12897,1770.9,1770.8,2.78443]
[1745865838572,1.12897,1770.9,1770.8,1.6554]
[1745865839476,1.12897,1770.9,1770.8,2.78443]
[1745865839677,1.12897,1770.9,1770.8,1.6554]
[1745865840379,1.12897,1770.9,1770.8,2.78443]
[1745865840679,1.12897,1770.9,1770.8,1.6554]
[1745865841178,1.12897,1770.9,1770.8,2.78443]
[1745865841480,1.12897,1770.9,1770.8,1.6554]
[1745865842281,2.77987,1770.9,1770.8,1.6554]
[1745865843279,4.46467,1770.9,1770.8,1.6554]
[1745865845583,1.12897,1770.9,1770.8,2.78443]
[1745865845885,1.12897,1770.9,1770.8,3.59893]
[1745865846181,6.02991,1771.1,1771.0,1.12885]
[1745865846182,1.12889,1771.1,1771.0,1.12885]
[1745865846584,1.12881,1771.2,1771.1,1.12878]
[1745865846880,1.12881,1771.2,1771.1,3.66228]
[1745865847879,1.12881,1771.2,1771.1,2.5335]
[1745865849585,1.12881,1771.2,1771.1,3.66234]
[1745865850585,1.12881,1771.2,1771.1,2.5335]
[1745865850885,1.12881,1771.2,1771.1,1.719]
[1745865851087,2.83821,1771.2,1771.1,1.719]
[1745865851286,1.12884,1771.1,1771.0,3.2078]
[1745865851487,2.83824,1771.1,1771.0,3.2078]
[1745865852189,6.64024,1771.1,1771.0,3.2078]
[1745865852987,2.82232,1771.0,1770.8,3.2078]
[1745865853188,1.12897,1770.9,1770.8,4.33681]
[1745865853387,2.85527,1770.9,1770.8,4.33681]
[1745865854190,2.85527,1770.9,1770.8,6.04611]
[1745865856094,2.85527,1770.9,1770.8,4.9171]
[1745865856390,2.85527,1770.9,1770.8,4.33683]
[1745865857087,2.85527,1770.9,1770.8,4.8914]
[1745865857590,2.85527,1770.9,1770.8,6.02043]
[1745865858692,2.85527,1770.9,1770.8,3.2078]
[1745865858895,1.12916,1770.7,1770.6,1.6836]
[1745865865092,1.12916,1770.6,1770.5,6.9798]
[1745865865292,1.12922,1770.5,1770.4,1.6428]
[1745865865799,2.85352,1770.5,1770.4,1.6428]
[1745865875705,2.85352,1770.5,1770.4,2.77209]
[1745865877100,1.6952,1770.6,1770.4,2.77209]
[1745865877307,4.33685,1770.9,1770.8,1.12899]
[1745865878006,1.12903,1770.8,1770.7,4.44204]
[1745865878206,1.12903,1770.8,1770.7,2.84024]
[1745865881809,1.12902,1770.9,1770.8,1.12898]
[1745865882013,17.35752,1771.1,1771.0,1.12891]
[1745865882014,5.18457,1771.1,1771.0,1.12891]
[1745865882210,1.97677,1771.1,1771.0,1.12891]
[1745865882410,1.97679,1771.1,1771.0,1.12891]
[1745865882710,2.42485184,1771.1,1771.0,1.12891]
[1745865882904,1.12891,1771.0,1770.9,4.33672]
[1745865888210,1.12891,1771.0,1770.9,3.2078]
[1745865888404,3.62331,1771.0,1770.9,3.2078]
[1745865889007,3.62331,1771.0,1770.9,4.33677]
[1745865889415,3.62331,1771.0,1770.9,1.12897]
[1745865890816,3.62331,1771.0,1770.9,2.73217]
[1745865891513,1.97677,1771.1,1771.0,1.12891]
[1745865891714,1.97677,1771.1,1771.0,3.55461]
[1745865891929,1.12887,1771.1,1771.0,3.55461]
[1745865892221,1.12887,1771.1,1771.0,4.37531]
[1745865893312,1.12887,1771.1,1771.0,1.6032]
[1745865893512,2.75767,1771.1,1771.0,1.6032]
[1745865893723,2.75767,1771.1,1771.0,2.73211]
[1745865894426,1.12895,1771.0,1770.9,1.12892]
[1745865894625,3.55465,1771.0,1770.9,1.12892]
[1745865895425,3.55465,1771.0,1770.9,2.72482]
[1745865895724,2.4257,1771.0,1770.9,2.72482]
[1745865895913,3.55461,1771.0,1770.9,2.72482]
[1745865903927,1.92581,1771.0,1770.9,2.72482]
[1745865904130,13.31325853,1771.4,1771.1,3.95084]
[1745865904335,1.12865,1771.4,1771.3,1.12871]
[1745865904835,3.76525,1771.4,1771.3,1.12871]
[1745865905033,3.08917387,1771.4,1771.2,2.4939]
[1745865905338,1.12871,1771.3,1771.2,3.62268]
[1745865906131,1.12871,1771.3,1771.2,1.669]
[1745865906335,1.12884,1771.1,1771.0,1.12886]
[1745865906737,3.75534,1771.2,1771.1,1.12884]
[1745865907038,2.6265,1771.2,1771.1,1.12884]
[1745865907930,3.75528,1771.2,1771.1,2.79174]
[1745865908132,2.6265,1771.2,1771.1,2.79174]
[1745865908736,0.866,1771.2,1771.1,2.79174]
[1745865908941,7.83919,1771.4,1771.3,1.12871]
[1745865909535,3.5027,1771.4,1771.3,1.12871]
[1745865909738,0.866,1771.4,1771.3,1.92961]
[1745865909933,6.96308,1771.6,1771.3,2.79071]
[1745865910243,7.78508,1771.6,1771.5,1.12859]
[1745865910443,3.4487,1771.6,1771.5,1.12859]
[1745865910633,1.6881,1771.6,1771.5,1.12859]
[1745865911940,0.822,1771.6,1771.5,1.12859]
[1745865912142,1.95052,1771.6,1771.5,1.12859]
[1745865912337,3.56272,1771.6,1771.5,1.12859]
[1745865912842,1.12859,1771.5,1771.4,2.7915]
[1745865913034,2.74079,1771.5,1771.4,2.7915]
[1745865913542,1.12871,1771.3,1771.2,3.2078]
[1745865913733,2.82189,1771.3,1770.9,6.3274]
[1745865914035,3.62101,1771.2,1771.1,1.12882]
[1745865914436,2.4922,1771.2,1771.1,1.12882]
[1745865914935,0.88,1771.2,1771.1,1.12882]
[1745865915340,0.88,1771.2,1771.1,2.77602]
[1745865916241,2.6146,1771.2,1771.1,2.77602]
[1745865917045,3.74338,1771.2,1771.1,1.12882]
[1745865918442,1.12884,1771.1,1771.0,4.33671]
[1745865918638,2.5449,1771.1,1771.0,4.33671]
[1745865918834,2.5449,1771.1,1771.0,6.06341]
[1745865919349,3.67374,1771.1,1771.0,6.06341]
[1745865919845,3.67374,1771.1,1771.0,3.2078]
[1745865925249,3.67374,1771.1,1771.0,4.906]
[1745865926550,3.67374,1771.1,1771.0,3.2078]
[1745865927942,1.12891,1771.0,1770.9,1.6274]
[1745865928144,1.12897,1770.9,1770.8,3.2078]
[1745865928452,1.98457,1770.9,1770.8,3.2078]
[1745865929050,3.59097,1770.9,1770.8,3.2078]
[1745865929244,1.12897,1770.9,1770.8,8.2078]
[1745865929445,1.12873,1771.3,1771.2,1.12873]
[1745865929648,3.2078,1771.4,1771.3,1.12871]
[1745865929851,4.59688,1771.6,1771.3,3.2078]
[1745865930051,2.84238,1771.6,1771.5,1.12859]
[1745865930456,1.98418,1771.6,1771.5,2.76069]
[1745865931142,0.8556,1771.6,1771.5,2.76069]
[1745865931343,1.98412,1771.6,1771.5,5.96849]
[1745865932355,1.98412,1771.6,1771.5,4.8399]
[1745865932662,1.98412,1771.6,1771.5,5.96849]
[1745865932951,3.59162,1771.6,1771.5,5.96849]
[1745865933152,3.59162,1771.6,1771.5,4.8399]
[1745865933354,3.59162,1771.6,1771.5,5.96849]
[1745865935456,3.59162,1771.6,1771.5,4.8399]
[1745865935756,1.12859,1771.5,1771.4,41.6373]
[1745865935953,3.63849,1771.5,1771.4,40.8]
[1745865936154,1.12865,1771.4,1771.3,3.2078]
[1745865936353,1.12865,1771.4,1771.3,5.97451]
[1745865936554,1.12865,1771.4,1771.3,2.76671]
[1745865936858,1.12865,1771.4,1771.3,1.638]
[1745865937051,1.12877,1771.3,1771.1,4.0185]
[1745865937354,1.12878,1771.2,1771.1,3.2078]
[1745865937559,3.63868,1771.2,1771.1,3.2078]
[1745865937755,3.63868,1771.2,1771.1,5.97464]
[1745865937955,3.63868,1771.2,1771.1,4.8458]
[1745865938258,3.63868,1771.2,1771.1,5.97464]
[1745865938757,3.63868,1771.2,1771.1,4.8458]
[1745865939557,3.63868,1771.2,1771.1,1.638]
[1745865941361,3.63868,1771.2,1771.1,5.97464]
[1745865941563,1.12878,1771.2,1771.1,4.8458]
[1745865942364,2.73178,1771.2,1771.1,4.8458]
[1745865943160,2.73178,1771.2,1771.1,1.638]
[1745865943865,3.53398,1771.2,1771.1,1.638]
[1745865947565,1.12891,1771.0,1770.9,5.95731]
[1745865947755,1.12891,1771.0,1770.9,4.33671]
[1745865948560,1.12891,1771.0,1770.9,1.12891]
[1745865948766,1.12891,1771.0,1770.9,4.33671]
[1745865949862,1.12889,1771.1,1771.0,1.12884]
[1745865954873,2.76961,1771.2,1771.1,1.12884]
[1745865956879,1.6408,1771.2,1771.1,1.12884]
[1745865957375,2.76958,1771.2,1771.1,2.00784]
[1745865958176,1.6408,1771.2,1771.1,2.00784]
[1745865958575,8.5914,1771.4,1771.3,1.12871]
[1745865958774,9.0918,1771.6,1771.5,1.12859]
[1745865958977,13.59932,1771.6,1771.5,1.12859]
[1745865959178,14.19352,1771.6,1771.5,1.12859]
[1745865960973,1.12859,1771.5,1771.4,2.86505]
[1745865961174,2.81429,1771.5,1771.4,2.86505]
[1745865961472,2.81429,1771.5,1771.4,1.7364]
[1745865962076,6.61629,1771.5,1771.4,2.86505]
[1745865962473,5.4877,1771.5,1771.4,2.86505]
[1745865962680,3.802,1771.5,1771.4,2.86505]
[1745865963079,5.884,1771.9,1771.4,2.86505]
[1745865963080,3.2078,1772.6,1771.4,17.14051]
[1745865963275,1.1279,1772.6,1772.4,1.12799]
[1745865963575,1.1279,1772.6,1772.3,44.0078]
[1745865963576,1.7196,1772.6,1772.3,44.0078]
[1745865963781,1.7196,1772.6,1772.4,2.74877]
[1745865964080,2.84749,1772.6,1772.5,1.6208]
[1745865964272,1.7196,1772.6,1772.5,1.6208]
[1745865964784,1.7196,1772.6,1772.5,2.74875]
[1745865964981,2.84749,1772.6,1772.5,1.6208]
[1745865965378,1.96544,1772.7,1772.6,1.12789]
[1745865965778,0.8376,1772.7,1772.6,1.12789]
[1745865966076,1.96542,1772.7,1772.6,2.74329]
[1745865966376,1.96542,1772.7,1772.6,1.6154]
[1745865966675,3.67272,1772.7,1772.6,1.6154]
[1745865966872,2.5449,1772.7,1772.6,2.74329]
[1745865967482,0.8769,1772.8,1772.7,1.12782]
[1745865967686,1.12776,1772.8,1772.7,4.8232]
[1745865967878,1.7073,1772.9,1772.7,4.8232]
[1745865968283,1.7073,1772.9,1772.8,2.74316]
[1745865968480,1.7073,1772.9,1772.8,1.6154]
[1745865968879,1.7073,1772.9,1772.8,2.74316]
[1745865969284,5.5093,1772.9,1772.8,1.6154]
[1745865969587,5.5093,1772.9,1772.8,2.74316]
[1745865969787,6.637,1772.9,1772.8,1.6154]
[1745865969986,6.637,1772.9,1772.7,4.33559]
[1745865970183,1.7325,1772.8,1772.7,4.33559]
[1745865971288,5.5345,1772.8,1772.7,4.33559]
[1745865972190,1.7325,1772.8,1772.7,4.33559]
[1745865973192,2.00086,1773.0,1772.9,1.1277]
[1745865973486,1.1277,1772.9,1772.8,2.75411]
[1745865974088,2.8687,1772.9,1772.8,2.75411]
[1745865974381,8.36237,1772.9,1772.5,3.2078]
[1745865974588,2.81979,1772.6,1772.3,1.12806]
[1745865974787,1.12808,1772.3,1772.2,1.12813]
[1745865974989,1.1282,1772.2,1772.1,1.12819]
[1745865975186,2.8859,1772.2,1772.1,1.12819]
[1745865975386,1.7577,1772.2,1772.1,2.86839]
[1745865975589,2.88584,1772.2,1772.1,2.86839]
[1745865975801,1.96374,1772.4,1772.3,1.12808]
[1745865975986,2.88561,1772.6,1772.5,1.12795]
[1745865976178,2.88561,1772.6,1772.3,6.02798]
[1745865976179,2.88561,1772.6,1772.4,1.7402]
[1745865976383,1.12795,1772.5,1772.4,2.86816]
[1745865977291,2.88564,1772.6,1772.5,1.12795]
[1745865979492,2.88559,1772.6,1772.5,1.12795]
[1745865979692,1.12785,1772.7,1772.6,1.12783]
[1745865979885,2.76115,1772.7,1772.6,1.12783]
[1745865980586,2.76115,1772.7,1772.6,2.85203]
[1745865980989,2.81671,1772.8,1772.7,1.12782]
[1745865981189,2.81671,1772.8,1772.7,2.86252]
[1745865982897,1.6889,1772.8,1772.7,2.86252]
[1745865984092,2.81666,1772.8,1772.7,2.86252]
[1745865984292,1.6889,1772.8,1772.7,2.86252]
[1745865984600,1.98096,1772.8,1772.7,2.86252]
[1745865985200,0.8532,1772.8,1772.7,2.86252]
[1745865985598,1.98096,1772.8,1772.7,2.86252]
[1745865985798,3.65356,1772.8,1772.7,2.86252]
[1745865987095,1.98096,1772.8,1772.7,6.07032]
[1745865987897,1.12776,1772.8,1772.7,6.07032]
[1745865988292,2.83542,1772.9,1772.8,1.12776]
[1745865988699,1.7077,1772.9,1772.8,1.12776]
[1745865988899,1.7077,1772.9,1772.8,2.82456]
[1745865989101,5.5097,1772.9,1772.8,2.82456]
[1745865991505,5.5097,1772.9,1772.8,1.12776]
[1745865992706,5.5097,1772.9,1772.8,2.78996]
[1745865993305,3.802,1772.9,1772.8,2.78996]
[1745865993606,3.802,1772.9,1772.8,3.59376]
[1745865994204,2.4241,1773.0,1772.9,1.1277]
[1745865994404,3.55173,1773.0,1772.9,2.8536]
[1745865994801,2.4241,1773.0,1772.9,2.8536]
[1745865995004,3.55173,1773.0,1772.9,2.8536]
[1745865995213,7.35373,1773.0,1772.9,2.8536]
[1745866000296,3.802,1773.0,1772.9,6.0614]
[1745866000500,3.802,1773.0,1772.9,6.9238]
[1745866001208,1.12763,1773.0,1772.9,6.9238]
[1745866002006,3.56189,1773.1,1773.0,1.12763]
[1745866002209,3.56189,1773.1,1773.0,2.74183]
[1745866002397,3.56189,1773.1,1773.0,1.12763]
[1745866003205,7.36389,1773.1,1773.0,1.12763]
[1745866003408,7.36389,1773.1,1772.9,6.02704]
[1745866003409,1.12763,1773.0,1772.9,4.33543]
[1745866003608,3.71863,1773.0,1772.9,4.33543]
[1745866004105,3.71863,1773.0,1772.9,1.12763]
[1745866006009,3.71863,1773.0,1772.9,1.1277]
[1745866006307,1.12776,1772.9,1772.8,1.12774]
[1745866006615,2.78536,1772.9,1772.8,1.12774]
[1745866007011,1.6576,1772.9,1772.7,1.1278]
[1745866007213,2.5321,1772.8,1772.7,1.1278]
[1745866007904,3.65986,1772.8,1772.7,1.1278]
[1745866008105,7.46186,1772.8,1772.7,1.1278]
[1745866008910,6.3341,1772.8,1772.7,1.1278]
[1745866009311,3.802,1772.8,1772.7,4.3356]
[1745866009910,4.92976,1772.8,1772.7,4.3356]
[1745866010106,3.68874,1772.9,1772.8,1.12776]
[1745866010309,3.68874,1772.9,1772.8,2.88256]
[1745866012113,3.68874,1772.9,1772.8,1.7548]
[1745866012315,1.12776,1772.8,1772.7,3.2078]
[1745866012505,2.79636,1772.8,1772.7,3.2078]
[1745866012811,2.79636,1772.8,1772.7,4.33562]
[1745866013111,6.59836,1772.8,1772.7,4.33562]
[1745866014511,5.4706,1772.8,1772.7,4.33562]
[1745866014709,5.4706,1772.8,1772.7,6.01522]
[1745866015109,1.6686,1772.8,1772.7,6.01522]
[1745866015310,1.92941,1772.9,1772.8,1.12776]
[1745866015505,3.57151,1772.9,1772.8,2.83486]
[1745866016110,7.37351,1772.9,1772.8,2.83486]
[1745866018603,6.2458,1772.9,1772.8,2.83486]
[1745866020110,4.6037,1772.9,1772.8,2.83486]
[1745866020409,4.6037,1772.9,1772.8,3.64906]
[1745866020714,3.802,1772.9,1772.8,3.64906]
[1745866021415,10.35286,1773.2,1773.1,1.12757]
[1745866021917,4.46886,1773.2,1773.1,1.12757]
[1745866022209,8.27086,1773.2,1773.1,1.12757]
[1745866022716,1.12757,1773.1,1773.0,2.80659]
[1745866022910,2.72777,1773.1,1773.0,2.80659]
[1745866023106,2.72777,1773.1,1773.0,1.12759]
[1745866023310,1.12763,1773.0,1772.9,4.33545]
[1745866023510,2.72783,1773.0,1772.9,4.33545]
[1745866023913,2.72783,1773.0,1772.9,2.83585]
[1745866024310,1.1277,1772.9,1772.8,4.88371]
[1745866024511,4.5443,1772.9,1772.8,4.88371]
[1745866025314,4.5443,1772.9,1772.8,6.59191]
[1745866025514,4.5443,1772.9,1772.8,4.88371]
[1745866025814,4.5443,1772.9,1772.8,1.12771]
[1745866026015,4.5443,1772.9,1772.8,2.83591]
[1745866029317,4.5443,1772.9,1772.8,1.7082]
[1745866029619,4.5443,1772.9,1772.8,2.83596]
[1745866030219,4.5443,1772.9,1772.8,1.12776]
[1745866031017,1.12776,1772.8,1772.7,5.95436]
[1745866031211,2.78006,1772.8,1772.7,5.95436]
[1745866031412,1.6523,1772.8,1772.7,5.95436]
[1745866031620,5.5096,1772.9,1772.8,1.12776]
[1745866031916,4.6841,1772.9,1772.8,2.74656]
[1745866032119,1.12764,1773.0,1772.9,1.1277]
[1745866032317,1.12764,1773.0,1772.9,3.5754]
[1745866032519,4.42043,1773.1,1773.0,1.12763]
[1745866032719,4.42043,1773.1,1773.0,2.74643]
[1745866032925,3.2928,1773.1,1773.0,2.74643]
[1745866033222,7.0948,1773.1,1773.0,2.74643]
[1745866036920,3.802,1773.1,1773.0,2.74643]
[1745866037220,8.28828,1773.3,1773.2,1.1275]
[1745866038120,1.1275,1773.2,1773.1,2.82232]
[1745866038321,2.8804,1773.2,1773.1,2.82232]
[1745866038816,2.8804,1773.2,1773.1,1.6948]
[1745866039023,1.12757,1773.1,1772.9,5.16435]
[1745866039322,0.7978,1773.0,1772.9,5.16435]
[1745866039520,0.7978,1773.0,1772.9,6.81545]
[1745866041416,3.3193,1773.0,1772.9,6.81545]
[1745866041824,4.44693,1773.0,1772.9,6.81545]
[1745866043122,4.44693,1773.0,1772.9,4.8589]
[1745866043423,4.44693,1773.0,1772.9,5.9866]
[1745866044727,1.12762,1773.1,1773.0,1.12759]
[1745866044925,1.12762,1773.1,1773.0,4.56509]
[1745866046327,8.3193,1773.3,1773.2,1.1275]
[1745866046519,4.5613,1773.3,1773.2,1.1275]
[1745866047124,8.3633,1773.3,1773.2,1.1275]
[1745866047327,8.3633,1773.3,1773.2,2.7593]
[1745866048024,8.3633,1773.3,1773.2,1.6318]
[1745866048225,1.12757,1773.1,1773.0,1.7049]
[1745866048529,1.12763,1773.0,1772.9,8.08945]
[1745866048730,4.49253,1773.0,1772.9,9.69895]
[1745866051624,1.97643,1773.0,1772.9,5.94495]
[1745866053535,1.12762,1773.1,1773.0,1.12757]
[1745866053832,1.12756,1773.2,1773.1,1.1275]
[1745866054035,1.12756,1773.2,1773.1,1.9694]
[1745866055531,2.79926,1773.2,1773.1,1.9694]
[1745866056835,1.6717,1773.2,1773.1,1.9694]
[1745866059839,2.81893,1773.1,1772.7,3.2078]
[1745866060025,1.1278,1772.8,1772.7,1.12778]
[1745866060234,1.12772,1772.9,1772.8,1.12773]
[1745866060528,1.7438,1772.9,1772.8,1.12773]
[1745866060838,2.87151,1772.9,1772.7,1.1278]
[1745866061344,1.7438,1772.8,1772.7,1.1278]
[1745866062839,2.87156,1772.8,1772.4,54.24508]
[1745866063134,2.87156,1772.8,1772.6,1.12782]
[1745866063336,2.87156,1772.8,1772.7,1.12782]
[1745866064637,1.12775,1772.9,1772.8,1.12776]
[1745866065039,6.54468,1773.0,1772.9,1.1277]
[1745866065240,2.74268,1773.0,1772.9,1.1277]
[1745866066342,1.92548,1773.0,1772.9,1.1277]
[1745866066540,1.12768,1773.0,1772.9,1.1277]
[1745866066734,1.12755,1773.2,1773.1,1.12757]
[1745866067338,4.50129,1773.3,1773.2,1.1275]
[1745866067542,2.86309,1773.3,1773.2,1.1275]
[1745866068146,6.66509,1773.3,1773.2,1.1275]
[1745866068346,4.92949,1773.3,1773.2,1.1275]
[1745866068538,3.802,1773.3,1773.2,1.1275]
[1745866069138,1.12744,1773.3,1773.2,1.1275]
[1745866069642,1.12742,1773.4,1773.3,1.12739]
[1745866069947,1.98746,1773.5,1773.4,1.12738]
[1745866070139,1.12736,1773.5,1773.4,1.98848]
[1745866070538,1.12728,1773.6,1773.5,1.12726]
[1745866070935,1.98732,1773.7,1773.6,1.12725]
[1745866071343,1.98732,1773.7,1773.6,2.86725]
[1745866071943,0.8601,1773.7,1773.6,2.86725]
[1745866072146,1.98729,1773.7,1773.6,1.74]
[1745866072445,4.46899,1773.7,1773.6,2.86725]
[1745866072652,3.3418,1773.7,1773.6,2.86725]
[1745866072939,6.02532,1774.0,1773.6,2.86725]
[1745866073146,6.02425,1774.7,1773.9,3.2078]
[1745866073340,1.7289,1774.3,1774.2,4.33467]
[1745866074142,6.9608,1774.7,1774.2,3.2078]
[1745866074445,4.52526,1774.6,1774.4,1.12674]
[1745866074645,1.7289,1774.5,1774.4,1.12674]
[1745866075248,5.5309,1774.5,1774.4,1.12674]
[1745866075450,6.65758,1774.5,1774.3,2.78406]
[1745866075641,1.7343,1774.4,1774.3,2.78406]
[1745866078150,5.5363,1774.4,1774.3,2.78406]
[1745866079151,1.7343,1774.4,1774.3,2.78406]
[1745866079954,2.86104,1774.4,1774.3,2.78406]
[1745866080252,2.86104,1774.4,1774.3,1.12676]
[1745866080652,1.7343,1774.4,1774.3,1.12676]
[1745866081246,2.86104,1774.4,1774.3,1.6284]
[1745866081554,1.7343,1774.4,1774.3,2.75521]
[1745866082742,3.802,1774.5,1774.4,1.12674]
[1745866082945,4.92868,1774.5,1774.4,2.77594]
[1745866083847,4.92868,1774.5,1774.4,1.6492]
[1745866084049,6.67188,1774.5,1774.4,1.6492]
[1745866084353,2.86988,1774.5,1774.4,1.6492]
[1745866084552,1.12674,1774.4,1774.3,0.838]
[1745866084847,1.12681,1774.3,1774.2,4.9687]
[1745866085051,1.12681,1774.3,1774.2,3.2078]
[1745866085353,2.00871,1774.3,1774.2,4.33467]
[1745866085949,2.00871,1774.3,1774.2,6.09557]
[1745866088857,2.00871,1774.3,1774.2,4.9687]
[1745866089158,2.00871,1774.3,1774.2,3.2078]
[1745866089357,5.63459,1774.2,1774.0,3.2078]
[1745866089555,1.97193,1774.1,1774.0,3.2078]
[1745866089750,3.72913,1774.1,1774.0,3.2078]
[1745866090160,7.53113,1774.1,1774.0,4.3348]
[1745866090358,5.77393,1774.1,1774.0,5.9492]
[1745866090559,5.77393,1774.1,1774.0,6.7507]
[1745866091051,1.97193,1774.1,1774.0,6.7507]
[1745866091258,0.845,1774.1,1774.0,6.7507]
[1745866091458,2.88412,1774.2,1774.1,1.12693]
[1745866091759,2.88412,1774.2,1774.1,2.78653]
[1745866092158,6.68612,1774.2,1774.1,2.78653]
[1745866092859,4.92892,1774.2,1774.1,2.78653]
[1745866093160,2.85375,1774.3,1774.2,1.12687]
[1745866093355,0.845,1774.3,1774.2,5.99427]
[1745866093554,1.97181,1774.3,1774.2,5.99427]
[1745866093752,1.12681,1774.3,1774.2,5.99427]
[1745866093955,1.7144,1774.5,1774.2,4.8674]
[1745866094255,1.12658,1774.7,1774.6,1.12654]
[1745866094458,1.12655,1774.7,1774.6,3.2078]
[1745866095255,4.92855,1774.7,1774.6,3.2078]
[1745866096050,4.92855,1774.7,1774.6,4.9147]
[1745866096249,1.12655,1774.7,1774.6,4.9147]
[1745866096954,2.77205,1774.7,1774.6,4.9147]
[1745866097157,5.4475,1774.7,1774.4,4.9673]
[1745866097458,1.12668,1774.5,1774.4,3.2078]
[1745866097860,2.77218,1774.5,1774.4,3.2078]
[1745866098261,6.57418,1774.5,1774.4,3.2078]
[1745866099253,6.57418,1774.5,1774.3,2.8863]
[1745866099960,1.617,1774.4,1774.3,1.7595]
[1745866100160,6.54574,1774.4,1774.3,2.88631]
[1745866100461,5.419,1774.4,1774.3,1.12681]
[1745866100663,6.54574,1774.4,1774.3,1.12681]
[1745866100858,6.54574,1774.4,1774.2,4.8396]
[1745866101054,0.8353,1774.3,1774.2,5.96647]
[1745866101456,3.57911,1774.3,1774.2,5.96647]
[1745866101657,3.57911,1774.3,1774.2,4.8396]
[1745866101858,3.57911,1774.3,1774.2,5.96647]
[1745866102052,7.38111,1774.3,1774.2,5.96647]
[1745866102562,6.2543,1774.3,1774.2,5.96647]
[1745866102860,7.38111,1774.3,1774.2,4.8396]
[1745866105060,7.38111,1774.3,1774.2,1.6318]
[1745866105562,3.802,1774.3,1774.2,2.75867]
[1745866106056,4.92881,1774.3,1774.2,2.75867]
[1745866106265,1.12681,1774.3,1774.2,2.75867]
[1745866106460,1.12681,1774.3,1774.2,1.6318]
[1745866107060,4.92881,1774.3,1774.2,1.6318]
[1745866108267,1.12693,1774.1,1774.0,4.0597]
[1745866108462,1.12693,1774.1,1774.0,6.8443]
[1745866112770,1.12693,1774.1,1774.0,5.7173]
[1745866113072,2.74903,1774.1,1774.0,3.2078]
[1745866114171,6.55103,1774.1,1774.0,3.2078]
[1745866114372,6.55103,1774.1,1774.0,4.9378]
[1745866115164,2.74903,1774.1,1774.0,6.0648]
[1745866116371,1.12693,1774.1,1774.0,6.0648]
[1745866116772,1.12693,1774.1,1774.0,4.9378]
[1745866116971,1.12693,1774.1,1774.0,6.0648]
[1745866117971,1.12693,1774.1,1774.0,4.9378]
[1745866118376,1.12693,1774.1,1774.0,3.2078]